fUST/lending_fUST_20250221
["ID","MTS","AMOUNT","RATE_DAILY","PERIOD"]
[353859173,1740097851843,-500.0,0.0001452,2]
[353859174,1740097851853,-1996.0,0.0001452,2]
[353859175,1740097851864,-3522.52,0.0001452,2]
[353859176,1740097851875,-584.09,0.0001452,2]
[353859177,1740097851885,-1282.81,0.0001452,2]
[353859178,1740097851895,-500.0,0.0001452,2]
[353859179,1740097851906,-682.12,0.0001452,2]
[353859180,1740097851915,-1084.12,0.0001452,2]
[353859181,1740097851926,-2053.02,0.0001452,2]
[353859182,1740097851935,-236.41288493,0.0001452,2]
[353859183,1740097851945,-657.23,0.0001452,2]
[353859184,1740097851954,-855.35,0.0001452,2]
[353859185,1740097851964,-2085.88,0.0001452,2]
[353859186,1740097851975,-2400.28,0.0001452,2]
[353859187,1740097851985,-550.36,0.0001452,2]
[353859188,1740097851994,-500.0,0.0001452,2]
[353859189,1740097852004,-151.0,0.0001452,2]
[353859190,1740097852014,-755.6,0.0001452,2]
[353859191,1740097852025,-500.0,0.0001452,2]
[353859192,1740097852035,-2528.55,0.0001452,2]
[353859193,1740097852045,-5873.51,0.0001452,2]
[353859194,1740097852054,-1871.42,0.0001452,2]
[353859195,1740097852064,-224.336594,0.0001452,2]
[353859196,1740097852075,-224.336594,0.0001452,2]
[353859197,1740097852085,-17350.12,0.0001452,2]
[353859198,1740097852095,-338.66649462,0.0001452,2]
[353859199,1740097852106,-873.49,0.0001452,2]
[353859200,1740097852116,-500.0,0.0001452,2]
[353859201,1740097852126,-500.0,0.0001452,2]
[353859202,1740097852135,-201.922182,0.0001452,2]
[353859203,1740097852227,-500.0,0.0001452,2]
[353859204,1740097852238,-567.85,0.0001452,2]
[353859205,1740097852248,-2112.09,0.0001452,2]
[353859206,1740097852258,-500.0,0.0001452,2]
[353859207,1740097852268,-528.95,0.0001452,2]
[353859208,1740097852277,-2172.75,0.0001452,2]
[353859209,1740097852286,-500.0,0.0001452,2]
[353859210,1740097852296,-1606.58,0.0001452,2]
[353859211,1740097852306,-306.0,0.0001458,2]
[353859212,1740097852315,-500.0,0.00014602,2]
[353859213,1740097852325,-512.02,0.00014602,2]
[353859214,1740097852334,-500.0,0.00014602,2]
[353859215,1740097852344,-720.25,0.00014602,2]
[353859216,1740097852353,-924.56,0.00014602,2]
[353859217,1740097852363,-608.05,0.00014602,2]
[353859218,1740097852372,-659.25,0.00014602,2]
[353859219,1740097852383,-1112.77,0.00014602,2]
[353859220,1740097852393,-620.25,0.00014602,2]
[353859221,1740097852402,-575.32,0.00014602,2]
[353859222,1740097852412,-500.0,0.00014602,2]
[353859223,1740097852422,-1226.4,0.00014602,2]
[353859224,1740097852431,-500.0,0.00014602,2]
[353859225,1740097852441,-500.0,0.00014602,2]
[353859226,1740097852451,-631.47,0.00014602,2]
[353859227,1740097852461,-616.91,0.00014602,2]
[353859228,1740097852470,-500.0,0.00014602,2]
[353859229,1740097852479,-757.01,0.00014602,2]
[353859230,1740097852489,-612.09,0.00014602,2]
[353859231,1740097852499,-1173.26,0.00014602,2]
[353859232,1740097852509,-500.0,0.00014602,2]
[353859233,1740097852521,-571.2,0.00014602,2]
[353859234,1740097852531,-863.93,0.00014602,2]
[353859235,1740097852541,-500.0,0.00014602,2]
[353859236,1740097852552,-500.0,0.00014602,2]
[353859237,1740097852562,-773.51,0.00014602,2]
[353859238,1740097852572,-500.0,0.00014602,2]
[353859239,1740097852583,-500.0,0.00014602,2]
[353859240,1740097852593,-563.79,0.00014602,2]
[353859241,1740097852603,-500.0,0.00014602,2]
[353859242,1740097852613,-870.26,0.00014602,2]
[353859243,1740097852622,-151.0,0.00014602,2]
[353859244,1740097852632,-500.0,0.00014602,2]
[353859245,1740097852642,-500.0,0.00014602,2]
[353859246,1740097852652,-500.0,0.00014602,2]
[353859247,1740097852662,-500.0,0.00014602,2]
[353859248,1740097852672,-500.0,0.00014602,2]
[353859249,1740097852682,-2965.2,0.00014602,2]
[353859250,1740097852693,-500.0,0.00014602,2]
[353859251,1740097852703,-7407.22,0.00014602,2]
[353859252,1740097852712,-1424.63,0.00014602,2]
[353859253,1740097852721,-151.0,0.00014602,2]
[353859254,1740097852731,-1126.5,0.00014602,2]
[353859255,1740097852740,-1088.81,0.00014602,2]
[353859256,1740097852749,-3319.91,0.00014602,2]
[353859257,1740097852758,-13071.21,0.00014602,2]
[353859258,1740097852768,-500.0,0.00014602,2]
[353859259,1740097852778,-500.0,0.00014602,2]
[353859260,1740097852788,-36691.61,0.00014602,2]
[353859261,1740097852798,-757.95,0.00014602,2]
[353859262,1740097852808,-2493.87,0.00014602,2]
[353859263,1740097852818,-1170.19,0.00014602,2]
[353859264,1740097852831,-1893.62,0.00014602,2]
[353859265,1740097852842,-1493.72,0.00014602,2]
[353859266,1740097852852,-151.0,0.00014602,2]
[353859267,1740097852861,-3206.01,0.00014602,2]
[353859268,1740097852871,-619.03,0.00014602,2]
[353859269,1740097852881,-1288.47,0.00014602,2]
[353859270,1740097852890,-6326.14,0.00014602,2]
[353859271,1740097852900,-1250.47,0.00014602,2]
[353859272,1740097852911,-500.0,0.00014602,2]
[353859273,1740097852921,-530.98,0.00014602,2]
[353859274,1740097852930,-486.34989201,0.00014602,2]
[353859275,1740097852940,-3591.47,0.00014602,2]
[353859276,1740097852949,-500.0,0.00014602,2]
[353859277,1740097852959,-151.0,0.00014602,2]
[353859278,1740097852969,-151.0,0.00014602,2]
[353859279,1740097852978,-1996.0,0.00014602,2]
[353859280,1740097852988,-3522.52,0.00014602,2]
[353859281,1740097852998,-584.09,0.00014602,2]
[353859282,1740097853008,-1282.81,0.00014602,2]
[353859283,1740097853024,-500.0,0.00014602,2]
[353859284,1740097853040,-682.12,0.00014602,2]
[353859285,1740097853057,-1084.12,0.00014602,2]
[353859286,1740097853070,-2053.02,0.00014602,2]
[353859287,1740097853086,-657.23,0.00014602,2]
[353859288,1740097853102,-855.35,0.00014602,2]
[353859289,1740097853117,-2085.88,0.00014602,2]
[353859290,1740097853134,-2400.28,0.00014602,2]
[353859291,1740097853149,-151.0,0.00014602,2]
[353859292,1740097853163,-550.36,0.00014602,2]
[353859293,1740097853177,-500.0,0.00014602,2]
[353859294,1740097853193,-755.6,0.00014602,2]
[353859295,1740097853207,-501.70011876,0.00014602,2]
[353859296,1740097853220,-2528.55,0.00014602,2]
[353859297,1740097853233,-5873.51,0.00014602,2]
[353859298,1740097853248,-1871.42,0.00014602,2]
[353859299,1740097853264,-17350.12,0.00014602,2]
[353859300,1740097853280,-873.49,0.00014602,2]
[353859301,1740097853297,-500.0,0.00014602,2]
[353859302,1740097853312,-500.0,0.00014602,2]
[353859303,1740097853323,-500.0,0.00014602,2]
[353859304,1740097853336,-567.85,0.00014602,2]
[353859305,1740097853352,-2112.09,0.00014602,2]
[353859306,1740097853366,-500.0,0.00014602,2]
[353859307,1740097853379,-528.95,0.00014602,2]
[353859308,1740097853393,-2172.75,0.00014602,2]
[353859309,1740097853406,-500.0,0.00014602,2]
[353859310,1740097853418,-1606.58,0.00014602,2]
[353859311,1740097853430,-605.42324317,0.0001465,2]
[353859312,1740097853443,-500.0,0.00014673,2]
[353859313,1740097853455,-500.0,0.00014673,2]
[353859314,1740097853468,-500.0,0.00014673,2]
[353859315,1740097853481,-500.0,0.00014684,2]
[353859316,1740097853493,-512.02,0.00014684,2]
[353859317,1740097853506,-500.0,0.00014684,2]
[353859318,1740097853519,-720.25,0.00014684,2]
[353859319,1740097853531,-924.56,0.00014684,2]
[353859320,1740097853544,-608.05,0.00014684,2]
[353859321,1740097853556,-659.25,0.00014684,2]
[353859322,1740097853568,-1112.77,0.00014684,2]
[353859323,1740097853581,-620.25,0.00014684,2]
[353859324,1740097853595,-575.32,0.00014684,2]
[353859325,1740097853608,-500.0,0.00014684,2]
[353859326,1740097853621,-1226.4,0.00014684,2]
[353859327,1740097853634,-500.0,0.00014684,2]
[353859328,1740097853646,-500.0,0.00014684,2]
[353859329,1740097853659,-631.47,0.00014684,2]
[353859330,1740097853672,-616.91,0.00014684,2]
[353859331,1740097853684,-500.0,0.00014684,2]
[353859332,1740097853696,-757.01,0.00014684,2]
[353859333,1740097853709,-612.09,0.00014684,2]
[353859334,1740097853721,-1173.26,0.00014684,2]
[353859335,1740097853733,-192.8,0.00014684,2]
[353859336,1740097853745,-192.8,0.00014684,2]
[353859337,1740097853758,-500.0,0.00014684,2]
[353859338,1740097853770,-571.2,0.00014684,2]
[353859339,1740097853783,-863.93,0.00014684,2]
[353859340,1740097853795,-500.0,0.00014684,2]
[353859341,1740097853807,-500.0,0.00014684,2]
[353859342,1740097853820,-773.51,0.00014684,2]
[353859343,1740097853836,-500.0,0.00014684,2]
[353859344,1740097853848,-500.0,0.00014684,2]
[353859345,1740097853860,-563.79,0.00014684,2]
[353859346,1740097853873,-500.0,0.00014684,2]
[353859347,1740097853886,-870.26,0.00014684,2]
[353859348,1740097853898,-500.0,0.00014684,2]
[353859349,1740097853911,-500.0,0.00014684,2]
[353859350,1740097853923,-500.0,0.00014684,2]
[353859351,1740097853935,-500.0,0.00014684,2]
[353859352,1740097853947,-500.0,0.00014684,2]
[353859353,1740097853960,-2965.2,0.00014684,2]
[353859354,1740097853973,-500.0,0.00014684,2]
[353859355,1740097853986,-7407.22,0.00014684,2]
[353859356,1740097853998,-1424.63,0.00014684,2]
[353859357,1740097854010,-1126.5,0.00014684,2]
[353859358,1740097854023,-1088.81,0.00014684,2]
[353859359,1740097854035,-3319.91,0.00014684,2]
[353859360,1740097854048,-13071.21,0.00014684,2]
[353859361,1740097854062,-500.0,0.00014684,2]
[353859362,1740097854073,-500.0,0.00014684,2]
[353859363,1740097854083,-32892.83813588,0.00014684,2]
[353859364,1740097854314,-406.71086063,0.00014684,2]
[353859365,1740097854326,-3392.06100349,0.00014684,2]
[353859366,1740097854336,-530.60137268,0.00014684,2]
[353859367,1740097854349,-227.34862732,0.00014684,2]
[353859368,1740097854359,-1296.23736788,0.00014684,2]
[353859369,1740097854384,-1197.63263212,0.00014684,2]
[353859370,1740097854393,-1170.19,0.00014684,2]
[353859371,1740097854403,-1893.62,0.00014684,2]
[353859372,1740097854413,-936.33184053,0.00014684,2]
[353859373,1740097854575,-500.0,0.0001378,2]
[353859374,1740097854585,-500.0,0.00013863,2]
[353859375,1740097854595,-500.0,0.00013945,2]
[353859376,1740097854604,-500.0,0.00014027,2]
[353859377,1740097854614,-500.0,0.00014109,2]
[353859378,1740097854623,-500.0,0.00014191,2]
[353859379,1740097854632,-500.0,0.00014273,2]
[353859380,1740097854642,-500.0,0.00014356,2]
[353859381,1740097854652,-557.38815947,0.00014684,2]
[353859382,1740097854665,-3206.01,0.00014684,2]
[353859383,1740097854675,-619.03,0.00014684,2]
[353859384,1740097854684,-1288.47,0.00014684,2]
[353859385,1740097854693,-6326.14,0.00014684,2]
[353859386,1740097854703,-1250.47,0.00014684,2]
[353859387,1740097854712,-500.0,0.00014684,2]
[353859388,1740097854722,-530.98,0.00014684,2]
[353859389,1740097854731,-3591.47,0.00014684,2]
[353859390,1740097854741,-500.0,0.00014684,2]
[353859391,1740097854750,-1996.0,0.00014684,2]
[353859392,1740097854759,-3522.52,0.00014684,2]
[353859393,1740097854769,-584.09,0.00014684,2]
[353859394,1740097854779,-1282.81,0.00014684,2]
[353859395,1740097854788,-500.0,0.00014684,2]
[353859396,1740097854797,-682.12,0.00014684,2]
[353859397,1740097854807,-1084.12,0.00014684,2]
[353859398,1740097854816,-2053.02,0.00014684,2]
[353859399,1740097854827,-657.23,0.00014684,2]
[353859400,1740097854839,-855.35,0.00014684,2]
[353859401,1740097854848,-2085.88,0.00014684,2]
[353859402,1740097854857,-2400.28,0.00014684,2]
[353859403,1740097854867,-550.36,0.00014684,2]
[353859404,1740097854877,-500.0,0.00014684,2]
[353859405,1740097854885,-151.0,0.00014684,2]
[353859406,1740097854898,-755.6,0.00014684,2]
[353859407,1740097854908,-2528.55,0.00014684,2]
[353859408,1740097854918,-5873.51,0.00014684,2]
[353859409,1740097854928,-1871.42,0.00014684,2]
[353859410,1740097854938,-224.336594,0.00014684,2]
[353859411,1740097854947,-224.336594,0.00014684,2]
[353859412,1740097854956,-17350.12,0.00014684,2]
[353859413,1740097854965,-873.49,0.00014684,2]
[353859414,1740097854975,-500.0,0.00014684,2]
[353859415,1740097854984,-500.0,0.00014684,2]
[353859416,1740097854994,-500.0,0.00014684,2]
[353859417,1740097855003,-567.85,0.00014684,2]
[353859418,1740097855012,-2112.09,0.00014684,2]
[353859419,1740097855022,-500.0,0.00014684,2]
[353859420,1740097855031,-528.95,0.00014684,2]
[353859421,1740097855041,-2172.75,0.00014684,2]
[353859422,1740097855050,-246.39127442,0.00014684,2]
[353859423,1740097855059,-1606.58,0.00014684,2]
[353859424,1740097855069,-11866.1117743,0.00014688,2]
[353859425,1740097855078,-653.7503432,0.00014699,2]
[353859426,1740097855088,-500.0,0.00014721,2]
[353859427,1740097855097,-500.0,0.00014721,2]
[353859428,1740097855106,-587.96596498,0.00014721,2]
[353859429,1740097855116,-500.0,0.00014721,2]
[353859430,1740097855125,-621.70952141,0.00014721,2]
[353859431,1740097855135,-508.60259608,0.00014721,2]
[353859432,1740097855144,-1000.0,0.00014721,2]
[353859433,1740097855153,-1000.0,0.00014721,2]
[353859434,1740097855163,-1000.0,0.00014721,2]
[353859435,1740097855172,-1000.0,0.00014721,2]
[353859436,1740097855182,-1000.0,0.00014721,2]
[353859437,1740097855191,-1000.0,0.00014721,2]
[353859438,1740097855201,-1000.0,0.00014721,2]
[353859439,1740097855212,-1000.0,0.00014721,2]
[353859440,1740097855221,-1000.0,0.00014721,2]
[353859441,1740097855231,-1000.0,0.00014721,2]
[353859442,1740097855241,-1000.0,0.00014721,2]
[353859443,1740097855250,-1000.0,0.00014721,2]
[353859444,1740097855260,-1000.0,0.00014721,2]
[353859445,1740097855270,-500.0,0.00014767,2]
[353859446,1740097855279,-512.02,0.00014767,2]
[353859447,1740097855288,-1622.86495749,0.00014767,2]
[353859448,1740097855299,-500.0,0.00014767,2]
[353859449,1740097855308,-720.25,0.00014767,2]
[353859450,1740097855319,-924.56,0.00014767,2]
[353859451,1740097855329,-608.05,0.00014767,2]
[353859452,1740097855338,-659.25,0.00014767,2]
[353859453,1740097855347,-1112.77,0.00014767,2]
[353859454,1740097855357,-620.25,0.00014767,2]
[353859455,1740097855366,-575.32,0.00014767,2]
[353859456,1740097855376,-500.0,0.00014767,2]
[353859457,1740097855386,-1226.4,0.00014767,2]
[353859458,1740097855395,-500.0,0.00014767,2]
[353859459,1740097855405,-500.0,0.00014767,2]
[353859460,1740097855414,-631.47,0.00014767,2]
[353859461,1740097855425,-616.91,0.00014767,2]
[353859462,1740097855435,-500.0,0.00014767,2]
[353859463,1740097855445,-757.01,0.00014767,2]
[353859464,1740097855455,-612.09,0.00014767,2]
[353859465,1740097855465,-1173.26,0.00014767,2]
[353859466,1740097855475,-500.0,0.00014767,2]
[353859467,1740097855485,-571.2,0.00014767,2]
[353859468,1740097855495,-863.93,0.00014767,2]
[353859469,1740097855505,-500.0,0.00014767,2]
[353859470,1740097855515,-500.0,0.00014767,2]
[353859471,1740097855526,-773.51,0.00014767,2]
[353859472,1740097855535,-500.0,0.00014767,2]
[353859473,1740097855545,-480.69922957,0.00014767,2]
[353859474,1740097855555,-563.79,0.00014767,2]
[353859475,1740097855564,-500.0,0.00014767,2]
[353859476,1740097855574,-870.26,0.00014767,2]
[353859477,1740097855585,-500.0,0.00014767,2]
[353859478,1740097855596,-500.0,0.00014767,2]
[353859479,1740097855606,-500.0,0.00014767,2]
[353859480,1740097855616,-2500.0,0.00014767,2]
[353859481,1740097855626,-500.0,0.00014767,2]
[353859482,1740097855635,-500.0,0.00014767,2]
[353859483,1740097855645,-2965.2,0.00014767,2]
[353859484,1740097855654,-500.0,0.00014767,2]
[353859485,1740097855663,-7407.22,0.00014767,2]
[353859486,1740097855672,-1424.63,0.00014767,2]
[353859487,1740097855682,-1126.5,0.00014767,2]
[353859488,1740097855691,-1088.81,0.00014767,2]
[353859489,1740097855701,-3319.91,0.00014767,2]
[353859490,1740097855710,-13071.21,0.00014767,2]
[353859491,1740097855720,-500.0,0.00014767,2]
[353859492,1740097855729,-500.0,0.00014767,2]
[353859493,1740097855739,-36691.61,0.00014767,2]
[353859494,1740097855749,-757.95,0.00014767,2]
[353859495,1740097855758,-2493.87,0.00014767,2]
[353859496,1740097855768,-1170.19,0.00014767,2]
[353859497,1740097855778,-1893.62,0.00014767,2]
[353859498,1740097855787,-1493.72,0.00014767,2]
[353859499,1740097855797,-156.548172,0.00014767,2]
[353859500,1740097855806,-3206.01,0.00014767,2]
[353859501,1740097855815,-619.03,0.00014767,2]
[353859502,1740097855826,-1288.47,0.00014767,2]
[353859503,1740097855839,-6326.14,0.00014767,2]
[353859504,1740097855848,-1250.47,0.00014767,2]
[353859505,1740097855858,-500.0,0.00014767,2]
[353859506,1740097855868,-530.98,0.00014767,2]
[353859507,1740097855879,-3591.47,0.00014767,2]
[353859508,1740097855889,-500.0,0.00014767,2]
[353859509,1740097855899,-151.0,0.00014767,2]
[353859510,1740097855909,-151.0,0.00014767,2]
[353859511,1740097855919,-1996.0,0.00014767,2]
[353859512,1740097855929,-3522.52,0.00014767,2]
[353859513,1740097855939,-584.09,0.00014767,2]
[353859514,1740097855948,-1282.81,0.00014767,2]
[353859515,1740097855958,-500.0,0.00014767,2]
[353859516,1740097855968,-682.12,0.00014767,2]
[353859517,1740097855978,-1084.12,0.00014767,2]
[353859518,1740097855987,-2053.02,0.00014767,2]
[353859519,1740097855998,-657.23,0.00014767,2]
[353859520,1740097856007,-855.35,0.00014767,2]
[353859521,1740097856017,-2085.88,0.00014767,2]
[353859522,1740097856029,-2400.28,0.00014767,2]
[353859523,1740097856039,-151.0,0.00014767,2]
[353859524,1740097856048,-550.36,0.00014767,2]
[353859525,1740097856057,-500.0,0.00014767,2]
[353859526,1740097856067,-755.6,0.00014767,2]
[353859527,1740097856077,-2528.55,0.00014767,2]
[353859528,1740097856088,-5873.51,0.00014767,2]
[353859529,1740097856098,-1871.42,0.00014767,2]
[353859530,1740097856107,-17350.12,0.00014767,2]
[353859531,1740097856117,-873.49,0.00014767,2]
[353859532,1740097856127,-500.0,0.00014767,2]
[353859533,1740097856137,-500.0,0.00014767,2]
[353859534,1740097856148,-567.85,0.00014767,2]
[353859535,1740097856158,-2112.09,0.00014767,2]
[353859536,1740097856169,-500.0,0.00014767,2]
[353859537,1740097856179,-528.95,0.00014767,2]
[353859538,1740097856189,-2172.75,0.00014767,2]
[353859539,1740097856199,-1606.58,0.00014767,2]
[353859540,1740097856209,-151.0,0.000148,2]
[353859541,1740097856218,-151.0,0.000148,2]
[353859542,1740097856227,-1000.0,0.000148,2]
[353859543,1740097856237,-2287.0,0.00014811,2]
[353859544,1740097856247,-396.0,0.00014811,2]
[353859545,1740097856257,-150.0,0.00014811,2]
[353859546,1740097856267,-1020.454338,0.00014826,2]
[353859547,1740097856277,-500.0,0.00014849,2]
[353859548,1740097856287,-512.02,0.00014849,2]
[353859549,1740097856298,-500.0,0.00014849,2]
[353859550,1740097856311,-720.25,0.00014849,2]
[353859551,1740097856321,-924.56,0.00014849,2]
[353859552,1740097856331,-608.05,0.00014849,2]
[353859553,1740097856341,-659.25,0.00014849,2]
[353859554,1740097856470,-1112.77,0.00014849,2]
[353859555,1740097856481,-620.25,0.00014849,2]
[353859556,1740097856491,-575.32,0.00014849,2]
[353859557,1740097856502,-500.0,0.00014849,2]
[353859558,1740097856512,-1226.4,0.00014849,2]
[353859559,1740097856522,-500.0,0.00014849,2]
[353859560,1740097856532,-500.0,0.00014849,2]
[353859561,1740097856542,-631.47,0.00014849,2]
[353859562,1740097856552,-616.91,0.00014849,2]
[353859563,1740097856562,-500.0,0.00014849,2]
[353859564,1740097856572,-757.01,0.00014849,2]
[353859565,1740097856582,-612.09,0.00014849,2]
[353859566,1740097856591,-1173.26,0.00014849,2]
[353859567,1740097856601,-192.8,0.00014849,2]
[353859568,1740097856612,-192.8,0.00014849,2]
[353859569,1740097856622,-500.0,0.00014849,2]
[353859570,1740097856632,-571.2,0.00014849,2]
[353859571,1740097856642,-863.93,0.00014849,2]
[353859572,1740097856652,-500.0,0.00014849,2]
[353859573,1740097856662,-232.94,0.00014849,2]
[353859574,1740097856672,-773.51,0.00014849,2]
[353859575,1740097856682,-500.0,0.00014849,2]
[353859576,1740097856691,-563.79,0.00014849,2]
[353859577,1740097856701,-500.0,0.00014849,2]
[353859578,1740097856711,-870.26,0.00014849,2]
[353859579,1740097856721,-500.0,0.00014849,2]
[353859580,1740097856731,-213.81193211,0.00014849,2]
[353859581,1740097856740,-500.0,0.00014849,2]
[353859582,1740097856751,-500.0,0.00014849,2]
[353859583,1740097856760,-500.0,0.00014849,2]
[353859584,1740097856771,-2965.2,0.00014849,2]
[353859585,1740097856781,-541.58802405,0.00014849,2]
[353859586,1740097856791,-7407.22,0.00014849,2]
[353859587,1740097856800,-1424.63,0.00014849,2]
[353859588,1740097856809,-1126.5,0.00014849,2]
[353859589,1740097856819,-1088.81,0.00014849,2]
[353859590,1740097856830,-3319.91,0.00014849,2]
[353859591,1740097856842,-13071.21,0.00014849,2]
[353859592,1740097856852,-500.0,0.00014849,2]
[353859593,1740097856861,-500.0,0.00014849,2]
[353859594,1740097856871,-36691.61,0.00014849,2]
[353859595,1740097856881,-757.95,0.00014849,2]
[353859596,1740097856891,-2493.87,0.00014849,2]
[353859597,1740097856901,-1170.19,0.00014849,2]
[353859598,1740097856912,-1893.62,0.00014849,2]
[353859599,1740097856922,-1493.72,0.00014849,2]
[353859600,1740097856932,-3206.01,0.00014849,2]
[353859601,1740097856942,-619.03,0.00014849,2]
[353859602,1740097856951,-1288.47,0.00014849,2]
[353859603,1740097856961,-6326.14,0.00014849,2]
[353859604,1740097856971,-1250.47,0.00014849,2]
[353859605,1740097856981,-500.0,0.00014849,2]
[353859606,1740097856991,-530.98,0.00014849,2]
[353859607,1740097857001,-3591.47,0.00014849,2]
[353859608,1740097857010,-500.0,0.00014849,2]
[353859609,1740097857021,-1996.0,0.00014849,2]
[353859610,1740097857031,-3522.52,0.00014849,2]
[353859611,1740097857040,-584.09,0.00014849,2]
[353859612,1740097857050,-1282.81,0.00014849,2]
[353859613,1740097857060,-500.0,0.00014849,2]
[353859614,1740097857070,-682.12,0.00014849,2]
[353859615,1740097857080,-1084.12,0.00014849,2]
[353859616,1740097857091,-2053.02,0.00014849,2]
[353859617,1740097857101,-657.23,0.00014849,2]
[353859618,1740097857111,-855.35,0.00014849,2]
[353859619,1740097857120,-2085.88,0.00014849,2]
[353859620,1740097857130,-2400.28,0.00014849,2]
[353859621,1740097857139,-550.36,0.00014849,2]
[353859622,1740097857149,-500.0,0.00014849,2]
[353859623,1740097857159,-755.6,0.00014849,2]
[353859624,1740097857169,-2528.55,0.00014849,2]
[353859625,1740097857178,-5873.51,0.00014849,2]
[353859626,1740097857188,-1871.42,0.00014849,2]
[353859627,1740097857198,-17350.12,0.00014849,2]
[353859628,1740097857208,-873.49,0.00014849,2]
[353859629,1740097857217,-500.0,0.00014849,2]
[353859630,1740097857225,-500.0,0.00014849,2]
[353859631,1740097857235,-567.85,0.00014849,2]
[353859632,1740097857244,-2112.09,0.00014849,2]
[353859633,1740097857254,-367.14606317,0.00014849,2]
[353859634,1740097857263,-528.95,0.00014849,2]
[353859635,1740097857274,-2172.75,0.00014849,2]
[353859636,1740097857283,-1606.58,0.00014849,2]
[353859637,1740097857293,-22624.05414412,0.0001485,2]
[353859638,1740097857303,-70237.94040842,0.000149,5]
[353859639,1740097857312,-160.0,0.000149,4]
[353859640,1740097857322,-160.0,0.000149,5]
[353859641,1740097857331,-150.0,0.000149,2]
[353859642,1740097857340,-189.0,0.000149,2]
[353859643,1740097857350,-192.8,0.000149,2]
[353859644,1740097857360,-192.8,0.000149,2]
[353859645,1740097857370,-151.0,0.000149,2]
[353859646,1740097857381,-268463.98454967,0.000149,2]
[353859647,1740097857459,-500.0,0.00014438,2]
[353859648,1740097857468,-1.01357908,0.0001452,2]
[353859654,1740097983659,150.0,0.00018086,60]
[353859655,1740098035030,16752.0,0.00018086,60]
[353859672,1740098701820,269.488752,9.041e-05,2]
[353859712,1740099031690,-326.51772412,0.000135,30]
[353859714,1740099031700,-300.0,0.00013697,2]
[353859716,1740099031709,-222.62975828,0.00013698,2]
[353859741,1740099031944,-277.37024172,0.00013698,2]
[353859743,1740099031954,-500.0,0.00013698,2]
[353859746,1740099031964,-500.0,0.00013698,2]
[353859748,1740099031973,-500.0,0.00013698,2]
[353859750,1740099031983,-500.0,0.00013698,2]
[353859752,1740099031993,-500.0,0.00013698,2]
[353859754,1740099032003,-500.0,0.00013698,2]
[353859756,1740099032012,-500.0,0.00013698,2]
[353859758,1740099032021,-504.82388529,0.00013698,2]
[353859760,1740099032031,-500.0,0.00013698,2]
[353859762,1740099032040,-500.0,0.00013698,2]
[353859764,1740099032050,-500.0,0.00013698,2]
[353859766,1740099032059,-500.0,0.00013698,2]
[353859768,1740099032068,-528.42,0.00013698,2]
[353859770,1740099032078,-500.0,0.00013698,2]
[353859772,1740099032087,-500.0,0.00013698,2]
[353859774,1740099032096,-591.42,0.00013698,2]
[353859776,1740099032106,-500.0,0.00013698,2]